[Event "Titled Tuesday Blitz October 18 Late 2022"]
[White "Abdyzhapar, Asylbek"]
[Black "Amburgy, Ryan"]
[WhiteFideId "13800337"]
[BlackFideId "30924820"]
[WhiteElo "2323"]
[BlackElo "2121"]
[Result "1-0"]
[Round "11"]
[TimeControl "180+1"]
[Date "2022.10.18"]
[WhiteClock "0:01:05"]
[BlackClock "0:00:04"]

1. c4 {[%clk 0:02:59]}  e5 {[%clk 0:02:59]} 2. g3 {[%clk 0:02:59]}  Nf6 {[%clk 0:02:59]} 3. Bg2 {[%clk 0:03:00]}  d5 {[%clk 0:03:00]} 4. cxd5 {[%clk 0:02:59]}  Nxd5 {[%clk 0:03:01]} 5. Nf3 {[%clk 0:02:59]}  Nc6 {[%clk 0:03:01]} 6. O-O {[%clk 0:03:00]}  Nb6 {[%clk 0:03:01]} 7. d3 {[%clk 0:02:59]}  Be7 {[%clk 0:03:02]} 8. a3 {[%clk 0:02:59]}  a5 {[%clk 0:03:01]} 9. Nc3 {[%clk 0:02:54]}  O-O {[%clk 0:03:01]} 10. Be3 {[%clk 0:02:54]}  a4 {[%clk 0:02:58]} 11. Rc1 {[%clk 0:02:54]}  Be6 {[%clk 0:02:58]} 12. Ne4 {[%clk 0:02:54]}  Bb3 {[%clk 0:02:56]} 13. Qd2 {[%clk 0:02:54]}  Nd5 {[%clk 0:02:57]} 14. Bc5 {[%clk 0:02:52]}  b6 {[%clk 0:02:56]} 15. Bxe7 {[%clk 0:02:48]}  Ndxe7 {[%clk 0:02:57]} 16. Rc3 {[%clk 0:02:41]}  Ra7 {[%clk 0:02:54]} 17. Rfc1 {[%clk 0:02:40]}  Nd4 {[%clk 0:02:52]} 18. Nxe5 {[%clk 0:02:40]}  Nd5 {[%clk 0:02:48]} 19. Nc6 {[%clk 0:02:37]}  Nxc6 {[%clk 0:02:48]} 20. Rxc6 {[%clk 0:02:37]}  Ne7 {[%clk 0:02:46]} 21. R6c3 {[%clk 0:02:25]}  Nd5 {[%clk 0:02:46]} 22. Rxb3 {[%clk 0:02:24]}  axb3 {[%clk 0:02:47]} 23. Qd1 {[%clk 0:02:23]}  Nf6 {[%clk 0:02:42]} 24. Qxb3 {[%clk 0:02:19]}  Nxe4 {[%clk 0:02:42]} 25. Bxe4 {[%clk 0:02:20]}  h6 {[%clk 0:02:38]} 26. Rc6 {[%clk 0:02:20]}  Qg5 {[%clk 0:02:33]} 27. Qc4 {[%clk 0:02:19]}  Qe5 {[%clk 0:02:32]} 28. Qc2 {[%clk 0:02:16]}  Kh8 {[%clk 0:02:29]} 29. e3 {[%clk 0:02:16]}  Re8 {[%clk 0:02:29]} 30. Bf3 {[%clk 0:02:16]}  Qf5 {[%clk 0:02:28]} 31. Kg2 {[%clk 0:02:15]}  Qb5 {[%clk 0:02:23]} 32. d4 {[%clk 0:02:13]}  Re7 {[%clk 0:02:21]} 33. h4 {[%clk 0:02:12]}  g6 {[%clk 0:02:15]} 34. h5 {[%clk 0:02:12]}  Qf5 {[%clk 0:01:37]} 35. Qxf5 {[%clk 0:02:11]}  gxf5 {[%clk 0:01:38]} 36. Rxh6+ {[%clk 0:02:11]}  Kg7 {[%clk 0:01:39]} 37. Rc6 {[%clk 0:02:11]}  Re6 {[%clk 0:01:39]} 38. Rc3 {[%clk 0:02:10]}  Kf6 {[%clk 0:01:37]} 39. d5 {[%clk 0:02:09]}  Rd6 {[%clk 0:01:36]} 40. Rc4 {[%clk 0:02:08]}  Kg5 {[%clk 0:01:35]} 41. g4 {[%clk 0:02:07]}  fxg4 {[%clk 0:01:32]} 42. Rxg4+ {[%clk 0:02:06]}  Kh6 {[%clk 0:01:31]} 43. Rf4 {[%clk 0:02:06]}  f6 {[%clk 0:01:30]} 44. Rc4 {[%clk 0:02:01]}  Kg5 {[%clk 0:01:19]} 45. Rc1 {[%clk 0:01:58]}  f5 {[%clk 0:01:17]} 46. Kg3 {[%clk 0:01:56]}  Rf6 {[%clk 0:01:15]} 47. Rc4 {[%clk 0:01:52]}  Rd6 {[%clk 0:01:12]} 48. a4 {[%clk 0:01:46]}  Rf6 {[%clk 0:01:01]} 49. Be2 {[%clk 0:01:44]}  Rd6 {[%clk 0:01:00]} 50. f4+ {[%clk 0:01:44]}  Kh6 {[%clk 0:01:00]} 51. Bf3 {[%clk 0:01:44]}  Rf6 {[%clk 0:00:59]} 52. b3 {[%clk 0:01:43]}  Rd6 {[%clk 0:00:58]} 53. Kh4 {[%clk 0:01:42]}  Rf6 {[%clk 0:00:58]} 54. Rc1 {[%clk 0:01:41]}  Rd6 {[%clk 0:00:55]} 55. Rg1 {[%clk 0:01:36]}  Ra8 {[%clk 0:00:55]} 56. Rg5 {[%clk 0:01:33]}  Rf8 {[%clk 0:00:54]} 57. Kg3 {[%clk 0:01:32]}  Rdf6 {[%clk 0:00:52]} 58. Kf2 {[%clk 0:01:32]}  b5 {[%clk 0:00:49]} 59. a5 {[%clk 0:01:24]}  b4 {[%clk 0:00:48]} 60. Be2 {[%clk 0:01:24]}  Rd8 {[%clk 0:00:48]} 61. Bc4 {[%clk 0:01:24]}  Ra8 {[%clk 0:00:42]} 62. a6 {[%clk 0:01:24]}  Ra7 {[%clk 0:00:42]} 63. Kg3 {[%clk 0:01:21]}  Ra8 {[%clk 0:00:42]} 64. Kh4 {[%clk 0:01:21]}  Ra7 {[%clk 0:00:43]} 65. Rg8 {[%clk 0:01:20]}  c6 {[%clk 0:00:42]} 66. dxc6 {[%clk 0:01:18]}  Rxc6 {[%clk 0:00:43]} 67. Rf8 {[%clk 0:01:16]}  Raxa6 {[%clk 0:00:41]} 68. Bxa6 {[%clk 0:01:15]}  Rxa6 {[%clk 0:00:42]} 69. Rxf5 {[%clk 0:01:15]}  Ra3 {[%clk 0:00:42]} 70. Rf6+ {[%clk 0:01:15]}  Kg7 {[%clk 0:00:42]} 71. Rb6 {[%clk 0:01:15]}  Rxb3 {[%clk 0:00:42]} 72. e4 {[%clk 0:01:15]}  Rb1 {[%clk 0:00:40]} 73. h6+ {[%clk 0:01:15]}  Kh7 {[%clk 0:00:39]} 74. Kg5 {[%clk 0:01:16]}  b3 {[%clk 0:00:40]} 75. e5 {[%clk 0:01:16]}  b2 {[%clk 0:00:40]} 76. Kf5 {[%clk 0:01:16]}  Kg8 {[%clk 0:00:34]} 77. Rb7 {[%clk 0:01:16]}  Kh8 {[%clk 0:00:29]} 78. Ke6 {[%clk 0:01:15]}  Rf1 {[%clk 0:00:28]} 79. Rxb2 {[%clk 0:01:15]}  Rxf4 {[%clk 0:00:29]} 80. Rd2 {[%clk 0:01:07]}  Kg8 {[%clk 0:00:27]} 81. Kd7 {[%clk 0:01:07]}  Rf7+ {[%clk 0:00:26]} 82. Kd6 {[%clk 0:01:07]}  Ra7 {[%clk 0:00:25]} 83. e6 {[%clk 0:01:07]}  Kf8 {[%clk 0:00:25]} 84. Rf2+ {[%clk 0:01:05]}  Ke8 {[%clk 0:00:25]} 85. Rc2 {[%clk 0:01:05]}  Kd8 {[%clk 0:00:04]} 86. e7+ {[%clk 0:01:05]} 1-0


[Site "https://www.chess.com"]

[Event "Titled Tuesday Blitz October 18 Late 2022"]
[White "Al-Tarboush, Ward"]
[Black "Yeletsky, Ivan"]
[WhiteFideId "7601450"]
[BlackFideId "24180327"]
[WhiteElo "2269"]
[BlackElo "2391"]
[Result "1/2-1/2"]
[Round "11"]
[TimeControl "180+1"]
[Date "2022.10.18"]
[WhiteClock "0:00:40"]
[BlackClock "0:00:16"]

1. e4 {[%clk 0:02:58]}  c5 {[%clk 0:02:59]} 2. Nf3 {[%clk 0:02:58]}  d6 {[%clk 0:03:00]} 3. d4 {[%clk 0:02:58]}  cxd4 {[%clk 0:03:00]} 4. Nxd4 {[%clk 0:02:58]}  Nf6 {[%clk 0:03:01]} 5. Nc3 {[%clk 0:02:59]}  a6 {[%clk 0:03:02]} 6. h3 {[%clk 0:03:00]}  e5 {[%clk 0:03:01]} 7. Nde2 {[%clk 0:03:00]}  h5 {[%clk 0:03:00]} 8. Bg5 {[%clk 0:03:00]}  Be6 {[%clk 0:03:00]} 9. g3 {[%clk 0:03:00]}  Nbd7 {[%clk 0:03:00]} 10. a4 {[%clk 0:03:00]}  Be7 {[%clk 0:02:59]} 11. Bg2 {[%clk 0:03:00]}  O-O {[%clk 0:02:54]} 12. O-O {[%clk 0:03:00]}  Rc8 {[%clk 0:02:52]} 13. b3 {[%clk 0:03:00]}  Nh7 {[%clk 0:02:41]} 14. Bxe7 {[%clk 0:02:51]}  Qxe7 {[%clk 0:02:41]} 15. f4 {[%clk 0:02:42]}  Ndf6 {[%clk 0:02:36]} 16. Qd3 {[%clk 0:02:25]}  Rfd8 {[%clk 0:02:26]} 17. Rad1 {[%clk 0:02:24]}  Qc7 {[%clk 0:02:21]} 18. f5 {[%clk 0:02:20]}  Qb6+ {[%clk 0:02:01]} 19. Kh2 {[%clk 0:02:15]}  Bd7 {[%clk 0:02:02]} 20. Qxd6 {[%clk 0:02:12]}  Qxd6 {[%clk 0:01:56]} 21. Rxd6 {[%clk 0:02:12]}  Bc6 {[%clk 0:01:52]} 22. Rfd1 {[%clk 0:01:55]}  Rxd6 {[%clk 0:01:51]} 23. Rxd6 {[%clk 0:01:56]}  Ng5 {[%clk 0:01:50]} 24. Nd5 {[%clk 0:01:56]}  Bxd5 {[%clk 0:01:46]} 25. exd5 {[%clk 0:01:55]}  Rxc2 {[%clk 0:01:46]} 26. Rd8+ {[%clk 0:01:51]}  Kh7 {[%clk 0:01:45]} 27. Ng1 {[%clk 0:01:51]}  e4 {[%clk 0:01:41]} 28. h4 {[%clk 0:01:13]}  Ng4+ {[%clk 0:01:22]} 29. Kh1 {[%clk 0:01:12]}  Nf3 {[%clk 0:01:22]} 30. Nxf3 {[%clk 0:00:50]}  exf3 {[%clk 0:00:55]} 31. Bxf3 {[%clk 0:00:50]}  Rc1+ {[%clk 0:00:52]} 32. Kg2 {[%clk 0:00:50]}  Rc2+ {[%clk 0:00:53]} 33. Kg1 {[%clk 0:00:49]}  Rc1+ {[%clk 0:00:47]} 34. Kg2 {[%clk 0:00:41]}  Rc2+ {[%clk 0:00:47]} 35. Kh1 {[%clk 0:00:39]}  Nf2+ {[%clk 0:00:28]} 36. Kg1 {[%clk 0:00:39]}  Nh3+ {[%clk 0:00:28]} 37. Kh1 {[%clk 0:00:40]}  Nf2+ {[%clk 0:00:27]} 38. Kg1 {[%clk 0:00:40]}  Nh3+ {[%clk 0:00:24]} 39. Kh1 {[%clk 0:00:40]}  Nf2+ {[%clk 0:00:16]} 1/2-1/2


[Site "https://www.chess.com"]

[Event "Titled Tuesday Blitz October 18 Late 2022"]
[White "Aldokhin, Ivan"]
[Black "Petrovic, Aleksa"]
[WhiteFideId "24115720"]
[BlackFideId "967629"]
[WhiteElo "2313"]
[BlackElo "2242"]
[Result "1-0"]
[Round "11"]
[TimeControl "180+1"]
[Date "2022.10.19"]
[WhiteClock "0:00:45"]
[BlackClock "0:00:09"]

1. e4 {[%clk 0:02:50]}  c6 {[%clk 0:02:58]} 2. Nf3 {[%clk 0:02:37]}  d5 {[%clk 0:02:59]} 3. Nc3 {[%clk 0:02:38]}  Bg4 {[%clk 0:02:55]} 4. h3 {[%clk 0:02:35]}  Bxf3 {[%clk 0:02:55]} 5. Qxf3 {[%clk 0:02:36]}  e6 {[%clk 0:02:54]} 6. g4 {[%clk 0:02:36]}  Nf6 {[%clk 0:02:52]} 7. Bg2 {[%clk 0:02:36]}  Nbd7 {[%clk 0:02:45]} 8. O-O {[%clk 0:02:34]}  Be7 {[%clk 0:02:44]} 9. d4 {[%clk 0:02:32]}  O-O {[%clk 0:02:42]} 10. e5 {[%clk 0:02:32]}  Ne8 {[%clk 0:02:42]} 11. Ne2 {[%clk 0:02:28]}  c5 {[%clk 0:02:39]} 12. c3 {[%clk 0:02:23]}  Bg5 {[%clk 0:02:39]} 13. Qg3 {[%clk 0:02:11]}  Bxc1 {[%clk 0:02:31]} 14. Raxc1 {[%clk 0:02:12]}  cxd4 {[%clk 0:02:27]} 15. cxd4 {[%clk 0:02:06]}  Nc7 {[%clk 0:02:20]} 16. f4 {[%clk 0:02:04]}  Na6 {[%clk 0:02:14]} 17. f5 {[%clk 0:02:00]}  Qb6 {[%clk 0:02:13]} 18. Qa3 {[%clk 0:01:42]}  Nxe5 {[%clk 0:02:05]} 19. Kh1 {[%clk 0:01:39]}  Nc4 {[%clk 0:02:01]} 20. Qe7 {[%clk 0:01:30]}  Ne3 {[%clk 0:01:43]} 21. Qg5 {[%clk 0:01:30]}  Nxf5 {[%clk 0:01:08]} 22. gxf5 {[%clk 0:01:28]}  exf5 {[%clk 0:01:06]} 23. Nf4 {[%clk 0:01:19]}  Qxd4 {[%clk 0:01:03]} 24. Nxd5 {[%clk 0:01:13]}  Qxb2 {[%clk 0:00:55]} 25. Rb1 {[%clk 0:01:12]}  Qd4 {[%clk 0:00:43]} 26. Ne7+ {[%clk 0:01:03]}  Kh8 {[%clk 0:00:42]} 27. Nxf5 {[%clk 0:01:02]}  Qe5 {[%clk 0:00:35]} 28. Rfe1 {[%clk 0:01:01]}  Qc3 {[%clk 0:00:33]} 29. Re3 {[%clk 0:00:57]}  Qf6 {[%clk 0:00:25]} 30. Qxf6 {[%clk 0:00:57]}  gxf6 {[%clk 0:00:26]} 31. Rxb7 {[%clk 0:00:55]}  Nc5 {[%clk 0:00:25]} 32. Rb5 {[%clk 0:00:49]}  Rac8 {[%clk 0:00:19]} 33. Ne7 {[%clk 0:00:48]}  Rc7 {[%clk 0:00:16]} 34. Nd5 {[%clk 0:00:48]}  Rc6 {[%clk 0:00:13]} 35. Rc3 {[%clk 0:00:45]}  a6 {[%clk 0:00:09]} 36. Rbxc5 {[%clk 0:00:45]} 1-0


[Site "https://www.chess.com"]

[Event "Titled Tuesday Blitz October 18 Late 2022"]
[White "Arnold, Ken"]
[Black "Kirillov, Dmitry"]
[WhiteFideId "2056836"]
[BlackFideId "34180572"]
[WhiteElo "2318"]
[BlackElo "2095"]
[Result "0-1"]
[Round "11"]
[TimeControl "180+1"]
[Date "2022.10.19"]
[WhiteClock "0:00:12"]
[BlackClock "0:00:11"]

1. d4 {[%clk 0:03:00]}  d5 {[%clk 0:02:59]} 2. c4 {[%clk 0:02:57]}  e6 {[%clk 0:03:00]} 3. Nf3 {[%clk 0:02:57]}  c6 {[%clk 0:03:00]} 4. Nc3 {[%clk 0:02:57]}  dxc4 {[%clk 0:03:00]} 5. a4 {[%clk 0:02:55]}  Bb4 {[%clk 0:02:59]} 6. e4 {[%clk 0:02:53]}  b5 {[%clk 0:02:58]} 7. axb5 {[%clk 0:02:54]}  cxb5 {[%clk 0:02:58]} 8. Bd2 {[%clk 0:02:53]}  Bxc3 {[%clk 0:02:57]} 9. Bxc3 {[%clk 0:02:53]}  Nf6 {[%clk 0:02:56]} 10. Qc2 {[%clk 0:02:45]}  O-O {[%clk 0:02:53]} 11. b3 {[%clk 0:02:44]}  cxb3 {[%clk 0:02:50]} 12. Qxb3 {[%clk 0:02:44]}  Nxe4 {[%clk 0:02:50]} 13. Bb4 {[%clk 0:02:42]}  Re8 {[%clk 0:02:49]} 14. Bxb5 {[%clk 0:02:41]}  Bd7 {[%clk 0:02:49]} 15. Bd3 {[%clk 0:02:39]}  Nf6 {[%clk 0:02:46]} 16. g4 {[%clk 0:02:34]}  Nc6 {[%clk 0:02:43]} 17. Bc5 {[%clk 0:02:29]}  Rb8 {[%clk 0:02:30]} 18. Qc2 {[%clk 0:02:24]}  g6 {[%clk 0:02:23]} 19. h4 {[%clk 0:02:18]}  Nd5 {[%clk 0:02:22]} 20. h5 {[%clk 0:02:08]}  Ncb4 {[%clk 0:02:20]} 21. Qd2 {[%clk 0:02:06]}  Nxd3+ {[%clk 0:02:16]} 22. Qxd3 {[%clk 0:02:00]}  Bb5 {[%clk 0:02:08]} 23. Qe4 {[%clk 0:01:53]}  Qf6 {[%clk 0:02:05]} 24. hxg6 {[%clk 0:01:37]}  hxg6 {[%clk 0:02:02]} 25. g5 {[%clk 0:01:29]}  Qf4 {[%clk 0:02:01]} 26. Qe5 {[%clk 0:01:21]}  f6 {[%clk 0:01:17]} 27. Qxf4 {[%clk 0:00:43]}  Nxf4 {[%clk 0:01:18]} 28. gxf6 {[%clk 0:00:42]}  Nd3+ {[%clk 0:01:13]} 29. Kd2 {[%clk 0:00:38]}  Nxc5 {[%clk 0:01:12]} 30. dxc5 {[%clk 0:00:32]}  Rf8 {[%clk 0:01:10]} 31. Rxa7 {[%clk 0:00:29]}  Rxf6 {[%clk 0:01:10]} 32. Ne5 {[%clk 0:00:22]}  Rd8+ {[%clk 0:01:04]} 33. Ke1 {[%clk 0:00:19]}  Rd5 {[%clk 0:00:36]} 34. f4 {[%clk 0:00:18]}  Rxf4 {[%clk 0:00:29]} 35. Nxg6 {[%clk 0:00:17]}  Re4+ {[%clk 0:00:22]} 36. Kf2 {[%clk 0:00:17]}  Rf5+ {[%clk 0:00:12]} 37. Kg3 {[%clk 0:00:16]}  Re3+ {[%clk 0:00:13]} 38. Kg4 {[%clk 0:00:15]}  Be2+ {[%clk 0:00:11]} 39. Kh4 {[%clk 0:00:12]}  Rh5# {[%clk 0:00:11]} 0-1


[Site "https://www.chess.com"]

[Event "Titled Tuesday Blitz October 18 Late 2022"]
[White "Barria Zuniga, Daniel"]
[Black "Manukian, Artak"]
[WhiteFideId "3400816"]
[BlackFideId "13301373"]
[WhiteElo "2414"]
[BlackElo "2496"]
[Result "0-1"]
[Round "11"]
[TimeControl "180+1"]
[Date "2022.10.18"]
[WhiteClock "0:00:03"]
[BlackClock "0:00:20"]

1. d4 {[%clk 0:03:00]}  d5 {[%clk 0:02:59]} 2. c4 {[%clk 0:03:01]}  dxc4 {[%clk 0:03:00]} 3. Nf3 {[%clk 0:03:00]}  Nf6 {[%clk 0:03:00]} 4. e3 {[%clk 0:03:01]}  e6 {[%clk 0:03:00]} 5. Bxc4 {[%clk 0:03:01]}  c5 {[%clk 0:03:00]} 6. O-O {[%clk 0:03:00]}  a6 {[%clk 0:03:01]} 7. Nc3 {[%clk 0:03:00]}  b5 {[%clk 0:03:00]} 8. Bb3 {[%clk 0:03:00]}  Bb7 {[%clk 0:03:01]} 9. Re1 {[%clk 0:03:01]}  Be7 {[%clk 0:03:00]} 10. e4 {[%clk 0:03:00]}  cxd4 {[%clk 0:02:57]} 11. Nxd4 {[%clk 0:02:59]}  O-O {[%clk 0:02:54]} 12. e5 {[%clk 0:02:58]}  Nd5 {[%clk 0:02:54]} 13. Qg4 {[%clk 0:02:25]}  Nxc3 {[%clk 0:02:46]} 14. bxc3 {[%clk 0:02:23]}  Re8 {[%clk 0:02:33]} 15. h4 {[%clk 0:02:04]}  Bf8 {[%clk 0:02:29]} 16. h5 {[%clk 0:02:03]}  Nc6 {[%clk 0:02:25]} 17. Bh6 {[%clk 0:01:58]}  Nxd4 {[%clk 0:02:20]} 18. cxd4 {[%clk 0:01:56]}  Kh8 {[%clk 0:02:19]} 19. Bg5 {[%clk 0:01:54]}  Be7 {[%clk 0:02:11]} 20. Bxe7 {[%clk 0:01:29]}  Qxe7 {[%clk 0:02:12]} 21. Rad1 {[%clk 0:01:27]}  Rad8 {[%clk 0:02:06]} 22. Rd3 {[%clk 0:01:21]}  Bd5 {[%clk 0:01:49]} 23. Rg3 {[%clk 0:01:10]}  Rg8 {[%clk 0:01:45]} 24. Rc1 {[%clk 0:01:01]}  Bxb3 {[%clk 0:01:39]} 25. Rxb3 {[%clk 0:00:57]}  h6 {[%clk 0:01:40]} 26. Rbc3 {[%clk 0:00:52]}  Qb4 {[%clk 0:01:33]} 27. Rd3 {[%clk 0:00:45]}  Rc8 {[%clk 0:01:26]} 28. Rcd1 {[%clk 0:00:35]}  Rgd8 {[%clk 0:01:20]} 29. Qf3 {[%clk 0:00:32]}  Kg8 {[%clk 0:01:17]} 30. d5 {[%clk 0:00:29]}  Rxd5 {[%clk 0:01:07]} 31. Rxd5 {[%clk 0:00:29]}  exd5 {[%clk 0:01:08]} 32. Qxd5 {[%clk 0:00:30]}  Re8 {[%clk 0:01:07]} 33. Rc1 {[%clk 0:00:10]}  Qe7 {[%clk 0:01:04]} 34. Rc5 {[%clk 0:00:08]}  Qe6 {[%clk 0:01:03]} 35. Qxe6 {[%clk 0:00:07]}  Rxe6 {[%clk 0:01:03]} 36. f4 {[%clk 0:00:07]}  Rb6 {[%clk 0:00:48]} 37. Kf2 {[%clk 0:00:07]}  a5 {[%clk 0:00:46]} 38. Ke3 {[%clk 0:00:07]}  b4 {[%clk 0:00:47]} 39. Kd3 {[%clk 0:00:07]}  a4 {[%clk 0:00:47]} 40. Kc2 {[%clk 0:00:08]}  b3+ {[%clk 0:00:46]} 41. axb3 {[%clk 0:00:08]}  Rxb3 {[%clk 0:00:47]} 42. Rc8+ {[%clk 0:00:05]}  Kh7 {[%clk 0:00:46]} 43. Ra8 {[%clk 0:00:05]}  Rg3 {[%clk 0:00:45]} 44. Rxa4 {[%clk 0:00:05]}  Rxg2+ {[%clk 0:00:45]} 45. Kd3 {[%clk 0:00:05]}  Rh2 {[%clk 0:00:39]} 46. Ra7 {[%clk 0:00:05]}  Kg8 {[%clk 0:00:38]} 47. Ra8+ {[%clk 0:00:05]}  Kh7 {[%clk 0:00:39]} 48. Ra7 {[%clk 0:00:05]}  Kg8 {[%clk 0:00:39]} 49. Ra8+ {[%clk 0:00:05]}  Kh7 {[%clk 0:00:39]} 50. Rf8 {[%clk 0:00:05]}  Rxh5 {[%clk 0:00:38]} 51. Rxf7 {[%clk 0:00:05]}  Kg8 {[%clk 0:00:32]} 52. Rd7 {[%clk 0:00:04]}  Rh1 {[%clk 0:00:25]} 53. Ke4 {[%clk 0:00:03]}  g6 {[%clk 0:00:20]} 0-1


[Site "https://www.chess.com"]

[Event "Titled Tuesday Blitz October 18 Late 2022"]
[White "Becerra, Juan David"]
[Black "Harvey, Marcus R"]
[WhiteFideId "4404998"]
[BlackFideId "400092"]
[WhiteElo "2278"]
[BlackElo "2457"]
[Result "1-0"]
[Round "11"]
[TimeControl "180+1"]
[Date "2022.10.18"]
[WhiteClock "0:01:51"]
[BlackClock "0:00:02"]

1. d4 {[%clk 0:03:00]}  Nf6 {[%clk 0:02:58]} 2. c4 {[%clk 0:03:00]}  c6 {[%clk 0:02:57]} 3. Nc3 {[%clk 0:02:56]}  d5 {[%clk 0:02:55]} 4. cxd5 {[%clk 0:02:56]}  cxd5 {[%clk 0:02:54]} 5. Bf4 {[%clk 0:02:56]}  e6 {[%clk 0:02:54]} 6. e3 {[%clk 0:02:54]}  Bd6 {[%clk 0:02:54]} 7. Bg3 {[%clk 0:02:51]}  O-O {[%clk 0:02:54]} 8. Nf3 {[%clk 0:02:51]}  Nc6 {[%clk 0:02:49]} 9. Bd3 {[%clk 0:02:51]}  Nb4 {[%clk 0:02:49]} 10. Bb1 {[%clk 0:02:50]}  a6 {[%clk 0:02:46]} 11. Ne5 {[%clk 0:02:49]}  Qc7 {[%clk 0:02:39]} 12. f4 {[%clk 0:02:48]}  Nc6 {[%clk 0:02:36]} 13. O-O {[%clk 0:02:47]}  Ne7 {[%clk 0:02:35]} 14. Bh4 {[%clk 0:02:47]}  Ne8 {[%clk 0:02:25]} 15. Rf3 {[%clk 0:02:40]}  f5 {[%clk 0:02:11]} 16. Bxe7 {[%clk 0:02:28]}  Qxe7 {[%clk 0:02:08]} 17. Bd3 {[%clk 0:02:28]}  Bd7 {[%clk 0:02:05]} 18. Rc1 {[%clk 0:02:21]}  Nf6 {[%clk 0:02:00]} 19. Rf2 {[%clk 0:02:20]}  Bxe5 {[%clk 0:01:56]} 20. dxe5 {[%clk 0:02:17]}  Ng4 {[%clk 0:01:55]} 21. Rf3 {[%clk 0:02:11]}  Rac8 {[%clk 0:01:27]} 22. h3 {[%clk 0:02:10]}  Nxe3 {[%clk 0:01:25]} 23. Rxe3 {[%clk 0:02:07]}  d4 {[%clk 0:01:25]} 24. Rg3 {[%clk 0:02:02]}  dxc3 {[%clk 0:01:22]} 25. Rxc3 {[%clk 0:02:02]}  Rxc3 {[%clk 0:01:20]} 26. bxc3 {[%clk 0:02:03]}  Bc6 {[%clk 0:01:11]} 27. Bc4 {[%clk 0:02:00]}  b5 {[%clk 0:01:03]} 28. Bb3 {[%clk 0:02:00]}  Rd8 {[%clk 0:00:30]} 29. Rd3 {[%clk 0:01:51]}  Rxd3 {[%clk 0:00:19]} 30. Qxd3 {[%clk 0:01:52]}  Kf7 {[%clk 0:00:06]} 31. Qxf5+ {[%clk 0:01:52]}  Ke8 {[%clk 0:00:04]} 32. Qxe6 {[%clk 0:01:52]}  Qxe6 {[%clk 0:00:04]} 33. Bxe6 {[%clk 0:01:52]}  a5 {[%clk 0:00:05]} 34. Kf2 {[%clk 0:01:52]}  Ke7 {[%clk 0:00:05]} 35. Bg8 {[%clk 0:01:52]}  Be4 {[%clk 0:00:05]} 36. g4 {[%clk 0:01:52]}  g5 {[%clk 0:00:04]} 37. f5 {[%clk 0:01:51]}  b4 {[%clk 0:00:03]} 38. cxb4 {[%clk 0:01:51]}  axb4 {[%clk 0:00:04]} 39. f6+ {[%clk 0:01:51]}  Kf8 {[%clk 0:00:04]} 40. Bb3 {[%clk 0:01:51]}  h6 {[%clk 0:00:02]} 41. e6 {[%clk 0:01:51]} 1-0


[Site "https://www.chess.com"]

[Event "Titled Tuesday Blitz October 18 Late 2022"]
[White "Bettalli, Francesco"]
[Black "Izuzquiza Gonzalez, Javier"]
[WhiteFideId "2816453"]
[BlackFideId "3101029"]
[WhiteElo "2216"]
[BlackElo "2034"]
[Result "1-0"]
[Round "11"]
[TimeControl "180+1"]
[Date "2022.10.19"]
[WhiteClock "0:00:32"]
[BlackClock "0:00:17"]

1. d4 {[%clk 0:03:00]}  Nf6 {[%clk 0:02:59]} 2. Nc3 {[%clk 0:02:58]}  d5 {[%clk 0:02:58]} 3. Bg5 {[%clk 0:02:56]}  Nbd7 {[%clk 0:02:57]} 4. Qd3 {[%clk 0:02:53]}  c6 {[%clk 0:02:53]} 5. O-O-O {[%clk 0:02:51]}  b5 {[%clk 0:02:54]} 6. e4 {[%clk 0:02:44]}  dxe4 {[%clk 0:02:53]} 7. Nxe4 {[%clk 0:02:43]}  Nxe4 {[%clk 0:02:49]} 8. Qxe4 {[%clk 0:02:44]}  Qa5 {[%clk 0:02:14]} 9. Kb1 {[%clk 0:02:37]}  Bb7 {[%clk 0:02:10]} 10. Nf3 {[%clk 0:02:24]}  e6 {[%clk 0:01:43]} 11. Ne5 {[%clk 0:02:20]}  Nf6 {[%clk 0:01:36]} 12. Bxf6 {[%clk 0:02:08]}  gxf6 {[%clk 0:01:37]} 13. Nxc6 {[%clk 0:01:57]}  Qb6 {[%clk 0:01:23]} 14. d5 {[%clk 0:01:54]}  Be7 {[%clk 0:00:51]} 15. Nxe7 {[%clk 0:01:48]}  Kxe7 {[%clk 0:00:52]} 16. d6+ {[%clk 0:01:46]}  Kd7 {[%clk 0:00:50]} 17. Qf4 {[%clk 0:01:35]}  f5 {[%clk 0:00:38]} 18. Qe5 {[%clk 0:01:32]}  Bd5 {[%clk 0:00:35]} 19. Rxd5 {[%clk 0:01:20]}  exd5 {[%clk 0:00:32]} 20. Qxd5 {[%clk 0:00:46]}  a6 {[%clk 0:00:21]} 21. Qxf5+ {[%clk 0:00:43]}  Kxd6 {[%clk 0:00:21]} 22. Be2 {[%clk 0:00:41]}  Kc7 {[%clk 0:00:20]} 23. Qxf7+ {[%clk 0:00:39]}  Kc6 {[%clk 0:00:19]} 24. Bf3+ {[%clk 0:00:38]}  Kc5 {[%clk 0:00:19]} 25. Qd5+ {[%clk 0:00:38]}  Kb4 {[%clk 0:00:18]} 26. a3+ {[%clk 0:00:31]}  Ka5 {[%clk 0:00:17]} 27. b4+ {[%clk 0:00:32]} 1-0


[Site "https://www.chess.com"]

[Event "Titled Tuesday Blitz October 18 Late 2022"]
[White "Bilych, Olexiy"]
[Black "Rustemov, Alexander"]
[WhiteFideId "14156504"]
[BlackFideId "4119002"]
[WhiteElo "2320"]
[BlackElo "2761"]
[Result "0-1"]
[Round "11"]
[TimeControl "180+1"]
[Date "2022.10.18"]
[WhiteClock "0:00:47"]
[BlackClock "0:00:59"]

1. d4 {[%clk 0:03:00]}  d5 {[%clk 0:02:59]} 2. c4 {[%clk 0:03:01]}  c6 {[%clk 0:02:59]} 3. Nf3 {[%clk 0:03:00]}  Nf6 {[%clk 0:02:59]} 4. Nc3 {[%clk 0:03:00]}  a6 {[%clk 0:02:58]} 5. Qc2 {[%clk 0:02:54]}  b5 {[%clk 0:02:56]} 6. e4 {[%clk 0:02:52]}  dxc4 {[%clk 0:02:51]} 7. b3 {[%clk 0:02:52]}  cxb3 {[%clk 0:02:49]} 8. axb3 {[%clk 0:02:50]}  e6 {[%clk 0:02:48]} 9. e5 {[%clk 0:02:50]}  Nd5 {[%clk 0:02:30]} 10. Nxd5 {[%clk 0:02:49]}  cxd5 {[%clk 0:02:29]} 11. Bxb5+ {[%clk 0:02:48]}  Bd7 {[%clk 0:02:29]} 12. Bd3 {[%clk 0:02:47]}  Nc6 {[%clk 0:02:28]} 13. Bxh7 {[%clk 0:02:45]}  Nb4 {[%clk 0:02:19]} 14. Qb1 {[%clk 0:02:45]}  Bb5 {[%clk 0:02:13]} 15. Ng5 {[%clk 0:02:32]}  Qc7 {[%clk 0:02:06]} 16. Bg6 {[%clk 0:02:10]}  Qc3+ {[%clk 0:01:44]} 17. Bd2 {[%clk 0:02:09]}  Qxd4 {[%clk 0:01:44]} 18. Be3 {[%clk 0:01:30]}  Qc3+ {[%clk 0:01:38]} 19. Bd2 {[%clk 0:01:31]}  Qxe5+ {[%clk 0:01:38]} 20. Be3 {[%clk 0:01:22]}  fxg6 {[%clk 0:01:37]} 21. Qxg6+ {[%clk 0:01:21]}  Kd7 {[%clk 0:01:36]} 22. Rc1 {[%clk 0:00:51]}  Nd3+ {[%clk 0:01:28]} 23. Kd1 {[%clk 0:00:50]}  Nxc1 {[%clk 0:01:16]} 24. Nf3 {[%clk 0:00:49]}  Be2+ {[%clk 0:01:03]} 25. Kxc1 {[%clk 0:00:48]}  Qc3+ {[%clk 0:01:03]} 26. Qc2 {[%clk 0:00:47]}  Ba3+ {[%clk 0:00:59]} 0-1


[Site "https://www.chess.com"]